fUSD/lending_fUSD_20251112
["ID","MTS","AMOUNT","RATE_DAILY","PERIOD"]
[393762856,1762969839929,-288.0,0.00037439,120]
[393762857,1762969839940,-1274.62,0.0003744,2]
[393762858,1762969839950,-288.0,0.00037484,2]
[393762859,1762969839960,-289.0,0.00037489,7]
[393762860,1762969839970,-2765.48517585,0.00037497,2]
[393762861,1762969839980,-288.0,0.00037509,120]
[393762862,1762969839990,-288.0,0.00037526,2]
[393762863,1762969840001,-338.76230314,0.00037534,20]
[393762864,1762969840013,-300.0,0.00037614,7]
[393762865,1762969840026,-151.27,0.00037709,60]
[393762866,1762969840037,-151.27,0.00037809,60]
[393762867,1762969840047,-151.27,0.00037909,60]
[393762868,1762969840058,-288.0,0.00037942,2]
[393762869,1762969840069,-2000.0,0.00038,2]
[393762870,1762969840080,-151.27,0.00038009,60]
[393762871,1762969840090,-374.43481118,0.00038014,15]
[393762872,1762969840100,-463.41812963,0.00038104,6]
[393762873,1762969840110,-151.27,0.00038109,60]
[393762874,1762969840120,-9342.98775137,0.0003819,4]
[393762875,1762969840131,-1634.0,0.000382,2]
[393762876,1762969840142,-151.27,0.00038209,60]
[393762877,1762969840152,-151.27,0.00038309,60]
[393762878,1762969840162,-151.27,0.00038409,120]
[393762879,1762969840172,-151.27,0.00038509,120]
[393762880,1762969840182,-48614.95934381,0.00038597,2]
[393762881,1762969840192,-220.0,0.00038602,4]
[393762882,1762969840202,-151.27,0.00038609,120]
[393762883,1762969840215,-151.27,0.00038709,120]
[393762884,1762969840226,-820.0,0.000388,14]
[393762885,1762969840236,-151.27,0.00038809,120]
[393762886,1762969840246,-1808.2941,0.00038888,30]
[393762887,1762969840256,-150.76,0.00038894,2]
[393762888,1762969840268,-198.35557658,0.000389,120]
[393762889,1762969840279,-163.25572442,0.000389,120]
[393762890,1762969840289,-172.12226943,0.000389,120]
[393762891,1762969840299,-207.61757181,0.00038904,120]
[393762892,1762969840309,-2765.48517585,0.00038904,2]
[393762893,1762969840319,-151.27,0.00038909,120]
[393762894,1762969840329,-150.03,0.0003892,60]
[393762895,1762969840339,-200.9215,0.00039007,7]
[393762897,1762969840349,-151.27,0.00039009,120]
[393762899,1762969840359,-151.27,0.00039109,120]
[393762901,1762969840368,-374.43481118,0.00039163,15]
[393762903,1762969840378,-151.27,0.00039209,120]
[393762905,1762969840387,-151.27,0.00039309,120]
[393762907,1762969840396,-151.27,0.00039409,120]
[393762909,1762969840406,-151.27,0.00039509,120]
[393762911,1762969840415,-153.0,0.00039587,120]
[393762913,1762969840425,-153.0,0.00039587,120]
[393762915,1762969840435,-153.0,0.00039587,120]
[393762917,1762969840445,-153.0,0.00039587,120]
[393762919,1762969840454,-153.0,0.00039587,120]
[393762921,1762969840463,-153.0,0.00039587,120]
[393762922,1762969840474,-153.0,0.00039587,120]
[393762924,1762969840484,-218.0,0.00039589,120]
[393762925,1762969840493,-218.0,0.00039589,120]
[393762927,1762969840503,-218.0,0.00039589,120]
[393762929,1762969840513,-218.0,0.00039589,120]
[393762930,1762969840525,-218.0,0.00039589,120]
[393762932,1762969840535,-961.4652087,0.00039604,2]
[393762933,1762969840545,-153.0,0.00039604,120]
[393762935,1762969840555,-153.0,0.00039604,120]
[393762936,1762969840567,-153.0,0.00039604,120]
[393762938,1762969840577,-153.0,0.00039604,120]
[393762940,1762969840587,-153.0,0.00039604,120]
[393762941,1762969840596,-153.0,0.00039604,120]
[393762943,1762969840606,-153.0,0.00039604,120]
[393762944,1762969840615,-160.0,0.00039607,120]
[393762946,1762969840624,-160.0,0.00039607,120]
[393762947,1762969840633,-160.0,0.00039607,120]
[393762949,1762969840644,-160.0,0.00039607,120]
[393762950,1762969840653,-160.0,0.00039607,120]
[393762951,1762969840663,-160.0,0.00039607,120]
[393762952,1762969840672,-151.27,0.00039609,120]
[393762953,1762969840680,-153.0,0.0003962,120]
[393762954,1762969840689,-153.0,0.0003962,120]
[393762955,1762969840698,-153.0,0.0003962,120]
[393762956,1762969840707,-153.0,0.0003962,120]
[393762957,1762969840716,-153.0,0.0003962,120]
[393762958,1762969840725,-153.0,0.0003962,120]
[393762959,1762969840735,-153.0,0.0003962,120]
[393762960,1762969840743,-219.0,0.00039624,120]
[393762961,1762969840753,-219.0,0.00039624,120]
[393762962,1762969840762,-219.0,0.00039624,120]
[393762963,1762969840773,-219.0,0.00039624,120]
[393762964,1762969840783,-219.0,0.00039624,120]
[393762965,1762969840792,-162.66019294,0.00039652,7]
[393762966,1762969840802,-151.27,0.00039709,120]
[393762967,1762969840811,-1357.26,0.00039798,30]
[393762968,1762969840821,-151.27,0.00039809,120]
[393762969,1762969840830,-1019.5405,0.00039899,2]
[393762970,1762969840839,-151.27,0.00039909,120]
[393762971,1762969840850,-861.668,0.0003995,2]
[393762972,1762969840870,-151.27,0.00040009,120]
[393762973,1762969840880,-1147.72906,0.0004004,2]
[393762974,1762969840891,-163.25572442,0.000401,120]
[393762975,1762969840900,-172.12226943,0.000401,120]
[393762976,1762969840910,-510.13117198,0.000401,30]
[393762977,1762969840920,-151.27,0.00040109,120]
[393762978,1762969840929,-2500.0,0.00040157,14]
[393762979,1762969840939,-2500.0,0.00040165,14]
[393762980,1762969840949,-2500.0,0.00040174,14]
[393762981,1762969840959,-500.0,0.0004018,30]
[393762982,1762969840969,-500.0,0.00040181,30]
[393762983,1762969840979,-178.06,0.00040183,120]
[393762985,1762969840988,-2500.0,0.00040183,14]
[393762986,1762969840998,-2500.0,0.00040192,14]
[393762987,1762969841008,-2500.0,0.00040201,14]
[393762988,1762969841021,-2500.0,0.00040209,14]
[393762989,1762969841031,-2500.0,0.00040213,14]
[393762990,1762969841041,-500.0,0.00040218,30]
[393762991,1762969841051,-2500.0,0.00040218,14]
[393762992,1762969841061,-2500.0,0.00040222,14]
[393762993,1762969841071,-2500.0,0.00040227,14]
[393762994,1762969841081,-1147.72907,0.0004024,3]
[393762995,1762969841091,-500.0,0.00040255,30]
[393762996,1762969841100,-500.0,0.00040262,2]
[393762997,1762969841110,-999.0,0.00040272,120]
[393762998,1762969841120,-500.0,0.00040273,5]
[393762999,1762969841130,-500.0,0.00040273,20]
[393763000,1762969841140,-500.0,0.00040273,20]
[393763001,1762969841150,-500.0,0.00040273,20]
[393763002,1762969841161,-500.0,0.00040273,20]
[393763003,1762969841171,-500.0,0.00040273,20]
[393763004,1762969841190,-500.0,0.00040273,20]
[393763005,1762969841201,-500.0,0.00040273,20]
[393763006,1762969841210,-1000.0,0.00040273,2]
[393763007,1762969841220,-1000.0,0.00040273,2]
[393763008,1762969841230,-1000.0,0.00040273,2]
[393763009,1762969841239,-297.22511826,0.00040273,20]
[393763010,1762969841250,-500.0,0.00040273,20]
[393763011,1762969841260,-500.0,0.00040273,20]
[393763012,1762969841272,-500.0,0.00040273,20]
[393763013,1762969841282,-500.0,0.00040273,20]
[393763014,1762969841291,-500.0,0.00040273,20]
[393763015,1762969841301,-500.0,0.00040273,20]
[393763016,1762969841311,-500.0,0.00040273,20]
[393763017,1762969841321,-500.0,0.00040273,20]
[393763018,1762969841333,-525.77353451,0.00040273,20]
[393763019,1762969841343,-500.0,0.00040273,20]
[393763020,1762969841352,-500.0,0.00040273,20]
[393763021,1762969841361,-500.0,0.00040273,20]
[393763022,1762969841371,-500.0,0.00040273,20]
[393763023,1762969841380,-500.0,0.00040273,20]
[393763024,1762969841390,-537.19704525,0.00040273,20]
[393763025,1762969841399,-595.02417111,0.00040273,20]
[393763026,1762969841409,-500.0,0.00040273,20]
[393763027,1762969841418,-500.0,0.00040273,20]
[393763028,1762969841428,-500.0,0.00040273,20]
[393763029,1762969841439,-152.56197667,0.00040273,20]
[393763030,1762969841448,-500.0,0.00040273,20]
[393763031,1762969841458,-500.0,0.00040273,20]
[393763032,1762969841467,-451.73169772,0.00040273,20]
[393763033,1762969841477,-500.0,0.00040273,20]
[393763034,1762969841487,-500.0,0.00040273,20]
[393763035,1762969841496,-570.13294595,0.00040273,20]
[393763036,1762969841506,-627.92253748,0.00040273,20]
[393763037,1762969841515,-500.0,0.00040273,120]
[393763038,1762969841527,-500.0,0.00040273,120]
[393763039,1762969841537,-500.0,0.00040273,120]
[393763040,1762969841547,-500.0,0.00040273,20]
[393763041,1762969841557,-500.0,0.00040273,120]
[393763042,1762969841572,-500.0,0.00040273,20]
[393763043,1762969841582,-196.2467722,0.00040273,20]
[393763044,1762969841591,-500.0,0.00040273,120]
[393763045,1762969841602,-500.0,0.00040273,20]
[393763046,1762969841611,-438.96938179,0.00040273,120]
[393763047,1762969841621,-218.69351316,0.00040273,20]
[393763048,1762969841630,-500.0,0.00040273,20]
[393763049,1762969841641,-500.0,0.00040273,20]
[393763050,1762969841650,-406.87450242,0.00040273,20]
[393763051,1762969841659,-487.62945193,0.00040273,20]
[393763052,1762969841669,-347.41095185,0.00040273,20]
[393763053,1762969841678,-512.46718402,0.00040273,20]
[393763054,1762969841687,-249.46966786,0.00040273,20]
[393763055,1762969841696,-607.19056721,0.00040273,20]
[393763056,1762969841705,-452.34027239,0.00040273,20]
[393763057,1762969841715,-311.50056147,0.00040273,20]
[393763058,1762969841724,-500.0,0.00040273,20]
[393763059,1762969841734,-500.0,0.00040273,20]
[393763060,1762969841743,-513.30814578,0.00040273,20]
[393763061,1762969841753,-590.74195738,0.00040273,20]
[393763062,1762969841763,-500.0,0.00040273,20]
[393763063,1762969841772,-242.21571684,0.00040273,20]
[393763064,1762969841781,-500.0,0.00040273,20]
[393763065,1762969841790,-500.0,0.00040273,20]
[393763066,1762969841800,-500.0,0.00040273,20]
[393763067,1762969841810,-296.64367984,0.00040273,20]
[393763068,1762969841819,-500.0,0.00040273,20]
[393763069,1762969841829,-500.0,0.00040273,20]
[393763070,1762969841839,-500.0,0.00040273,20]
[393763071,1762969841848,-268.23783738,0.00040273,20]
[393763072,1762969841857,-523.5195773,0.00040273,20]
[393763073,1762969841867,-464.68167995,0.00040273,20]
[393763074,1762969841876,-500.0,0.00040273,20]
[393763075,1762969841885,-500.0,0.00040273,20]
[393763076,1762969841895,-500.0,0.00040273,20]
[393763077,1762969841904,-500.0,0.00040273,20]
[393763078,1762969841913,-500.0,0.00040273,20]
[393763079,1762969841923,-500.0,0.00040273,20]
[393763080,1762969841932,-500.0,0.00040273,20]
[393763081,1762969841941,-500.0,0.00040273,20]
[393763082,1762969841951,-500.0,0.00040273,20]
[393763083,1762969841961,-500.0,0.00040273,20]
[393763084,1762969841971,-500.0,0.00040273,20]
[393763085,1762969841981,-500.0,0.00040273,20]
[393763086,1762969841990,-500.0,0.00040273,20]
[393763087,1762969842000,-500.0,0.00040273,20]
[393763088,1762969842010,-500.0,0.00040273,20]
[393763089,1762969842019,-373.30798458,0.00040273,20]
[393763090,1762969842029,-500.0,0.00040273,20]
[393763091,1762969842040,-568.37918798,0.00040273,20]
[393763092,1762969842049,-307.46797566,0.00040273,20]
[393763093,1762969842060,-528.25593589,0.00040273,20]
[393763094,1762969842069,-500.0,0.00040273,20]
[393763095,1762969842079,-543.97362261,0.00040273,20]
[393763096,1762969842088,-500.0,0.00040273,20]
[393763097,1762969842097,-500.0,0.00040273,20]
[393763098,1762969842107,-500.0,0.00040273,20]
[393763099,1762969842116,-500.0,0.00040273,20]
[393763100,1762969842126,-500.0,0.00040273,20]
[393763101,1762969842135,-500.0,0.00040273,20]
[393763102,1762969842144,-500.0,0.00040273,20]
[393763103,1762969842154,-396.06211683,0.00040273,20]
[393763104,1762969842163,-500.0,0.00040273,20]
[393763105,1762969842172,-500.0,0.00040273,20]
[393763106,1762969842182,-500.0,0.00040273,7]
[393763107,1762969842192,-500.0,0.00040273,7]
[393763108,1762969842202,-500.0,0.00040273,20]
[393763109,1762969842211,-500.0,0.00040273,7]
[393763110,1762969842221,-614.63068439,0.00040273,20]
[393763111,1762969842230,-243.11842268,0.00040273,20]
[393763112,1762969842239,-500.0,0.00040273,20]
[393763113,1762969842248,-500.0,0.00040273,20]
[393763114,1762969842258,-422.01624957,0.00040273,20]
[393763115,1762969842268,-500.0,0.00040273,20]
[393763116,1762969842279,-500.0,0.00040273,20]
[393763117,1762969842290,-153.5585818,0.00040273,20]
[393763118,1762969842299,-500.0,0.00040273,20]
[393763119,1762969842309,-500.0,0.00040273,20]
[393763120,1762969842318,-500.0,0.00040273,20]
[393763121,1762969842328,-500.0,0.00040273,20]
[393763122,1762969842337,-500.0,0.00040273,20]
[393763123,1762969842346,-500.0,0.00040273,20]
[393763124,1762969842355,-500.0,0.00040273,20]
[393763125,1762969842364,-500.0,0.00040273,20]
[393763126,1762969842373,-500.0,0.00040273,20]
[393763127,1762969842383,-500.0,0.00040273,20]
[393763128,1762969842392,-476.11120023,0.00040273,20]
[393763129,1762969842402,-500.0,0.00040273,20]
[393763130,1762969842411,-500.0,0.00040273,20]
[393763131,1762969842421,-537.54158613,0.00040273,20]
[393763132,1762969842430,-500.0,0.00040273,20]
[393763133,1762969842438,-500.0,0.00040273,20]
[393763134,1762969842448,-513.87827695,0.00040273,20]
[393763135,1762969842457,-208.67835101,0.00040273,20]
[393763136,1762969842466,-538.90505053,0.00040273,20]
[393763137,1762969842476,-515.56562059,0.00040273,20]
[393763138,1762969842485,-500.0,0.00040273,20]
[393763139,1762969842495,-266.66092551,0.00040273,20]
[393763140,1762969842504,-500.0,0.00040273,20]
[393763141,1762969842514,-500.0,0.00040273,20]
[393763142,1762969842523,-500.0,0.00040273,20]
[393763143,1762969842533,-500.0,0.00040273,20]
[393763144,1762969842542,-500.0,0.00040273,20]
[393763145,1762969842551,-500.0,0.00040273,20]
[393763146,1762969842561,-500.0,0.00040273,20]
[393763147,1762969842576,-500.0,0.00040273,20]
[393763148,1762969842586,-500.0,0.00040273,20]
[393763149,1762969842595,-500.0,0.00040273,20]
[393763150,1762969842605,-500.0,0.00040273,20]
[393763151,1762969842615,-500.0,0.00040273,20]
[393763152,1762969842625,-490.57257766,0.00040273,20]
[393763153,1762969842635,-500.0,0.00040273,20]
[393763154,1762969842645,-431.73463081,0.00040273,20]
[393763155,1762969842655,-191.34697931,0.00040273,20]
[393763156,1762969842664,-500.0,0.00040273,20]
[393763157,1762969842673,-500.0,0.00040273,20]
[393763158,1762969842682,-500.0,0.00040273,20]
[393763159,1762969842691,-500.0,0.00040273,20]
[393763160,1762969842702,-500.0,0.00040273,20]
[393763161,1762969842711,-500.0,0.00040273,20]
[393763162,1762969842721,-500.0,0.00040273,20]
[393763163,1762969842731,-500.0,0.00040273,20]
[393763164,1762969842741,-500.0,0.00040273,20]
[393763165,1762969842750,-500.0,0.00040273,20]
[393763166,1762969842759,-500.0,0.00040273,20]
[393763167,1762969842769,-178.09329404,0.00040273,20]
[393763168,1762969842782,-375.76994771,0.00040273,20]
[393763169,1762969842791,-340.22763352,0.00040273,20]
[393763170,1762969842801,-500.0,0.00040273,20]
[393763171,1762969842810,-500.0,0.00040273,20]
[393763172,1762969842820,-500.0,0.00040273,20]
[393763173,1762969842829,-383.78323472,0.00040273,20]
[393763174,1762969842838,-500.0,0.00040273,20]
[393763175,1762969842848,-500.0,0.00040273,20]
[393763176,1762969842857,-500.0,0.00040273,20]
[393763177,1762969842867,-500.0,0.00040273,20]
[393763178,1762969842877,-500.0,0.00040273,20]
[393763179,1762969842887,-500.0,0.00040273,20]
[393763180,1762969842895,-462.33214186,0.00040273,20]
[393763181,1762969842905,-558.25505738,0.00040273,20]
[393763182,1762969842915,-239.12426438,0.00040273,20]
[393763183,1762969842925,-630.87859523,0.00040273,20]
[393763184,1762969842935,-500.0,0.00040273,20]
[393763185,1762969842946,-500.0,0.00040273,20]
[393763186,1762969842958,-500.0,0.00040273,20]
[393763187,1762969842968,-500.0,0.00040273,20]
[393763188,1762969842977,-500.0,0.00040273,20]
[393763189,1762969842987,-500.0,0.00040273,20]
[393763190,1762969842996,-500.0,0.00040273,20]
[393763192,1762969843006,-500.0,0.00040273,20]
[393763194,1762969843016,-500.0,0.00040273,20]
[393763196,1762969843028,-500.0,0.00040273,20]
[393763197,1762969843038,-500.0,0.00040273,20]
[393763198,1762969843047,-500.0,0.00040273,20]
[393763199,1762969843057,-500.0,0.00040273,20]
[393763200,1762969843067,-500.0,0.00040273,20]
[393763201,1762969843076,-500.0,0.00040273,20]
[393763202,1762969843086,-408.02163594,0.00040273,20]
[393763203,1762969843096,-500.0,0.00040273,20]
[393763204,1762969843106,-601.28641066,0.00040273,20]
[393763205,1762969843116,-500.0,0.00040273,20]
[393763206,1762969843125,-500.0,0.00040273,20]
[393763207,1762969843135,-568.18331011,0.00040273,20]
[393763208,1762969843145,-500.0,0.00040273,20]
[393763209,1762969843154,-500.0,0.00040273,20]
[393763210,1762969843164,-500.0,0.00040273,20]
[393763212,1762969843311,-500.0,0.00040273,20]
[393763213,1762969843321,-500.0,0.00040273,20]
[393763214,1762969843331,-500.0,0.00040273,20]
[393763215,1762969843342,-500.0,0.00040273,20]
[393763216,1762969843352,-500.0,0.00040273,20]
[393763217,1762969843361,-500.0,0.00040273,20]
[393763218,1762969843370,-500.0,0.00040273,20]
[393763219,1762969843379,-500.0,0.00040273,20]
[393763220,1762969843389,-500.0,0.00040273,20]
[393763221,1762969843398,-500.0,0.00040273,20]
[393763222,1762969843407,-500.0,0.00040273,20]
[393763223,1762969843416,-500.0,0.00040273,20]
[393763224,1762969843425,-500.0,0.00040273,20]
[393763225,1762969843435,-500.0,0.00040273,20]
[393763226,1762969843444,-500.0,0.00040273,20]
[393763227,1762969843454,-500.0,0.00040273,2]
[393763228,1762969843463,-500.0,0.00040273,20]
[393763229,1762969843473,-500.0,0.00040273,20]
[393763230,1762969843484,-500.0,0.00040273,20]
[393763231,1762969843493,-500.0,0.00040273,20]
[393763232,1762969843503,-500.0,0.00040273,20]
[393763233,1762969843513,-500.0,0.00040273,20]
[393763234,1762969843524,-500.0,0.00040273,20]
[393763235,1762969843534,-477.01705635,0.00040273,20]
[393763236,1762969843543,-633.44725734,0.00040273,20]
[393763237,1762969843553,-500.0,0.00040273,20]
[393763238,1762969843564,-611.43129878,0.00040273,20]
[393763239,1762969843575,-212.22256467,0.00040273,20]
[393763240,1762969843585,-500.0,0.00040273,20]
[393763241,1762969843595,-500.0,0.00040273,20]
[393763242,1762969843605,-500.0,0.00040273,20]
[393763243,1762969843613,-500.0,0.00040273,20]
[393763244,1762969843622,-500.0,0.00040273,20]
[393763245,1762969843630,-500.0,0.00040273,20]
[393763246,1762969843642,-500.0,0.00040273,20]
[393763247,1762969843651,-537.75445747,0.00040273,20]
[393763248,1762969843660,-500.0,0.00040273,20]
[393763249,1762969843668,-500.0,0.00040273,2]
[393763250,1762969843678,-500.0,0.00040273,2]
[393763251,1762969843689,-500.0,0.00040273,2]
[393763252,1762969843699,-500.0,0.00040273,2]
[393763253,1762969843710,-500.0,0.00040273,2]
[393763254,1762969843719,-500.0,0.00040273,2]
[393763255,1762969843729,-500.0,0.00040273,2]
[393763256,1762969843738,-500.0,0.00040273,2]
[393763257,1762969843748,-500.0,0.00040273,2]
[393763258,1762969843757,-500.0,0.00040273,2]
[393763259,1762969843766,-500.0,0.00040273,2]
[393763260,1762969843776,-500.0,0.00040273,2]
[393763261,1762969843785,-500.0,0.00040273,2]
[393763262,1762969843794,-500.0,0.00040273,20]
[393763263,1762969843803,-500.0,0.00040273,2]
[393763264,1762969843813,-500.0,0.00040273,2]
[393763265,1762969843823,-500.0,0.00040273,2]
[393763266,1762969843833,-500.0,0.00040273,2]
[393763267,1762969843843,-500.0,0.00040273,2]
[393763268,1762969843852,-500.0,0.00040273,2]
[393763270,1762969843861,-644.14,0.00040273,2]
[393763271,1762969843871,-500.0,0.00040273,20]
[393763272,1762969843881,-500.0,0.00040273,20]
[393763273,1762969843890,-500.0,0.00040273,20]
[393763274,1762969843900,-500.0,0.00040273,20]
[393763275,1762969843908,-500.0,0.00040273,20]
[393763276,1762969843918,-500.0,0.00040273,20]
[393763277,1762969843927,-428.98876825,0.00040273,20]
[393763278,1762969843936,-500.0,0.00040273,10]
[393763279,1762969843945,-500.0,0.00040273,20]
[393763280,1762969843955,-500.0,0.00040273,20]
[393763281,1762969843964,-500.0,0.00040273,20]
[393763282,1762969843973,-500.0,0.00040273,20]
[393763283,1762969843982,-534.80852296,0.00040273,20]
[393763284,1762969843991,-500.0,0.00040273,20]
[393763285,1762969844001,-500.0,0.00040273,20]
[393763286,1762969844010,-500.0,0.00040273,20]
[393763287,1762969844020,-500.0,0.00040273,20]
[393763288,1762969844031,-500.0,0.00040273,20]
[393763289,1762969844040,-500.0,0.00040273,20]
[393763290,1762969844050,-500.0,0.00040273,20]
[393763291,1762969844059,-633.23392953,0.00040273,20]
[393763292,1762969844068,-500.0,0.00040273,20]
[393763293,1762969844078,-500.0,0.00040273,20]
[393763294,1762969844088,-500.0,0.00040273,20]
[393763295,1762969844097,-500.0,0.00040273,20]
[393763296,1762969844106,-500.0,0.00040273,20]
[393763297,1762969844116,-500.0,0.00040273,20]
[393763298,1762969844126,-500.0,0.00040273,20]
[393763299,1762969844135,-245.56221142,0.00040273,20]
[393763300,1762969844144,-486.74954768,0.00040273,20]
[393763301,1762969844154,-520.63417127,0.00040273,20]
[393763302,1762969844164,-500.0,0.00040273,20]
[393763303,1762969844174,-276.93770141,0.00040273,20]
[393763304,1762969844183,-500.0,0.00040273,20]
[393763305,1762969844193,-500.0,0.00040273,15]
[393763306,1762969844202,-500.0,0.00040273,20]
[393763307,1762969844212,-500.0,0.00040273,15]
[393763308,1762969844222,-500.0,0.00040273,15]
[393763309,1762969844232,-500.0,0.00040273,15]
[393763310,1762969844243,-290.3762817,0.00040273,15]
[393763311,1762969844261,-430.5953965,0.00040273,20]
[393763312,1762969844276,-500.0,0.00040273,20]
[393763313,1762969844291,-500.0,0.00040273,20]
[393763314,1762969844302,-500.0,0.00040273,20]
[393763315,1762969844312,-500.0,0.00040273,20]
[393763316,1762969844322,-500.0,0.00040273,20]
[393763317,1762969844332,-500.0,0.00040273,20]
[393763318,1762969844342,-500.0,0.00040273,20]
[393763319,1762969844352,-500.0,0.00040273,20]
[393763320,1762969844363,-617.44257598,0.00040273,20]
[393763321,1762969844372,-500.0,0.00040273,20]
[393763322,1762969844382,-500.0,0.00040273,20]
[393763323,1762969844391,-500.0,0.00040273,20]
[393763324,1762969844401,-500.0,0.00040273,20]
[393763325,1762969844413,-500.0,0.00040273,20]
[393763326,1762969844423,-315.73930794,0.00040273,20]
[393763327,1762969844434,-276.54807613,0.00040273,20]
[393763328,1762969844444,-500.0,0.00040273,20]
[393763329,1762969844454,-500.0,0.00040273,20]
[393763330,1762969844464,-307.37661852,0.00040273,20]
[393763331,1762969844473,-500.0,0.00040273,20]
[393763332,1762969844482,-513.40493381,0.00040273,20]
[393763333,1762969844491,-195.47214038,0.00040273,20]
[393763334,1762969844501,-500.0,0.00040273,20]
[393763335,1762969844510,-500.0,0.00040273,20]
[393763336,1762969844519,-560.76842197,0.00040273,20]
[393763337,1762969844531,-500.0,0.00040273,20]
[393763338,1762969844541,-500.0,0.00040273,20]
[393763339,1762969844550,-500.0,0.00040273,20]
[393763340,1762969844562,-549.5461605,0.00040273,20]
[393763341,1762969844575,-185.51459932,0.00040273,20]
[393763342,1762969844584,-300.0,0.00040273,20]
[393763343,1762969844594,-300.0,0.00040273,20]
[393763344,1762969844604,-300.0,0.00040273,20]
[393763345,1762969844615,-500.0,0.00040273,20]
[393763346,1762969844624,-500.0,0.00040273,20]
[393763347,1762969844634,-396.12489678,0.00040273,20]
[393763348,1762969844645,-402.97047713,0.00040273,20]
[393763349,1762969844655,-500.0,0.00040273,20]
[393763350,1762969844664,-500.0,0.00040273,20]
[393763351,1762969844674,-500.0,0.00040273,20]
[393763352,1762969844683,-500.0,0.00040273,20]
[393763353,1762969844693,-500.0,0.00040273,20]
[393763354,1762969844703,-500.0,0.00040273,20]
[393763355,1762969844712,-500.0,0.00040273,20]
[393763356,1762969844722,-500.0,0.00040273,20]
[393763357,1762969844731,-500.0,0.00040273,20]
[393763358,1762969844740,-500.0,0.00040273,20]
[393763359,1762969844750,-500.0,0.00040273,20]
[393763360,1762969844759,-500.0,0.00040273,20]
[393763361,1762969844768,-500.0,0.00040273,20]
[393763362,1762969844778,-500.0,0.00040273,20]
[393763363,1762969844787,-500.0,0.00040273,20]
[393763364,1762969844797,-500.0,0.00040273,20]
[393763365,1762969844807,-500.0,0.00040273,20]
[393763366,1762969844816,-500.0,0.00040273,20]
[393763367,1762969844825,-500.0,0.00040273,20]
[393763368,1762969844835,-500.0,0.00040273,20]
[393763369,1762969844846,-500.0,0.00040273,20]
[393763370,1762969844857,-500.0,0.00040273,20]
[393763371,1762969844867,-500.0,0.00040273,20]
[393763372,1762969844877,-500.0,0.00040273,20]
[393763373,1762969844886,-399.18405703,0.00040273,20]
[393763374,1762969844896,-500.0,0.00040273,20]
[393763375,1762969844907,-500.0,0.00040273,20]
[393763376,1762969844916,-500.0,0.00040273,20]
[393763377,1762969844927,-500.0,0.00040273,20]
[393763378,1762969844937,-500.0,0.00040273,20]
[393763379,1762969844946,-500.0,0.00040273,20]
[393763380,1762969844956,-500.0,0.00040273,20]
[393763381,1762969844965,-500.0,0.00040273,20]
[393763382,1762969844975,-500.0,0.00040273,20]
[393763383,1762969844984,-500.0,0.00040273,20]
[393763384,1762969844994,-500.0,0.00040273,20]